bitfinex/quotes_ETHUSD_20241217
["timestamp","ask_amount","ask_price","bid_price","bid_amount"]
[1734432717360,2.33492787,4005.3,4004.9,1.0659]
[1734432717520,1.03694732,4005.4,4004.9,1.0659]
[1734432717723,2.33495091,4005.3,4004.9,1.0659]
[1734432717946,1.03694732,4005.4,4004.9,1.0659]
[1734432718131,0.85969463,4005.3,4004.9,1.0659]
[1734432718346,1.03694732,4005.4,4004.9,1.0659]
[1734432718529,1.04535378,4005.3,4004.9,1.0659]
[1734432718735,1.1098,4005.2,4004.2,1.0659]
[1734432719043,2.33458884,4005.1,4004.2,1.0659]
[1734432719220,2.14916779,4005.0,4004.2,1.0659]
[1734432719420,1.03694732,4005.1,4004.3,2.33655783]
[1734432719646,0.85974972,4005.0,4004.3,5.33655783]
[1734432719845,0.85968908,4004.9,4004.3,5.33655783]
[1734432720045,1.03694732,4005.1,4004.4,4.0659]
[1734432720231,2.14969875,4005.0,4004.4,4.0659]
[1734432720433,1.03694732,4005.0,4004.4,4.0659]
[1734432720654,0.85991577,4004.9,4004.4,4.0659]
[1734432720866,1.03694732,4005.1,4004.4,3.0]
[1734432721175,1.03694732,4005.2,4004.7,2.33655783]
[1734432721347,1.03694732,4005.3,4004.7,5.33655783]
[1734432721564,0.86016856,4005.2,4004.7,5.33655783]
[1734432721741,1.03694732,4005.4,4004.7,5.33655783]
[1734432722051,0.86025874,4005.3,4004.8,1.1241]
[1734432722361,1.03694732,4005.6,4004.8,4.1241]
[1734432722575,3.1875324,4005.5,4004.8,4.1241]
[1734432722876,0.86023403,4005.4,4004.8,4.1241]
[1734432723057,1.03694732,4005.5,4004.8,4.1241]
[1734432723372,0.86021892,4005.4,4004.8,4.1241]
[1734432723580,1.03694732,4005.6,4004.8,4.1241]
[1734432723872,1.03694732,4005.4,4004.8,4.1241]
[1734432724076,1.03694732,4005.4,4004.4,0.3289048]
[1734432724077,1.03694732,4005.1,4004.5,1.1241]
[1734432724273,1.03694732,4004.9,4004.5,1.1241]
[1734432724474,3.18800372,4004.8,4004.0,4.1241]
[1734432724771,3.1879578,4004.7,4004.0,1.1241]
[1734432724949,3.37367464,4004.6,4004.0,1.1241]
[1734432725151,3.1879578,4004.5,4004.0,1.1241]
[1734432725351,0.86036536,4004.4,4004.0,1.1241]
[1734432725541,1.03694732,4004.5,4004.0,1.1241]
[1734432725848,0.86049024,4004.4,4004.0,1.1241]
[1734432726034,1.03694732,4004.7,4004.0,1.1241]
[1734432726237,3.18815325,4004.6,4004.0,4.1241]
[1734432726437,2.15120593,4004.5,4004.0,4.1241]
[1734432726667,0.86048237,4004.4,4004.0,4.1241]
[1734432726865,1.03694732,4004.6,4004.0,4.1241]
[1734432727066,2.1511825,4004.5,4004.0,4.1241]
[1734432727386,1.03694732,4004.6,4004.0,4.1241]
[1734432727597,2.15121786,4004.5,4004.0,4.1241]
[1734432727797,1.03694732,4004.6,4004.0,4.1241]
[1734432728096,2.15112192,4004.5,4004.0,4.1241]
[1734432728298,1.03694732,4004.6,4004.0,4.1241]
[1734432728611,0.86044937,4004.5,4004.0,4.1241]
[1734432728800,1.03694732,4004.6,4004.0,4.1241]
[1734432729106,0.86047593,4004.5,4004.0,4.1241]
[1734432729398,1.03694732,4004.6,4004.0,4.1241]
[1734432729571,0.86053001,4004.5,4004.0,4.1241]
[1734432729764,1.03694732,4004.6,4004.0,4.1241]
[1734432730113,0.86048886,4004.5,4004.0,4.1241]
[1734432730418,1.03694732,4004.6,4004.0,4.1241]
[1734432730712,0.86050226,4004.5,4004.0,4.1241]
[1734432731023,1.03694732,4004.7,4004.0,4.1241]
[1734432731305,2.1513252,4004.6,4004.0,4.1241]
[1734432731486,0.86053008,4004.5,4004.0,4.1241]
[1734432731682,1.03694732,4004.6,4004.0,4.1241]
[1734432732028,2.45668317,4004.5,4004.0,4.1241]
[1734432732323,3.18691926,4004.4,4003.6,1.1241]
[1734432732462,2.14997194,4004.3,4003.8,2.33655783]
[1734432732662,1.03694732,4004.6,4004.2,2.33655783]
[1734432732923,0.86017477,4004.5,4004.2,2.33655783]
[1734432733128,1.03694732,4004.6,4004.2,2.33655783]
[1734432733265,2.15040925,4004.5,4004.2,2.33655783]
[1734432733462,1.03694732,4004.7,4004.2,2.33655783]
[1734432733659,2.15037756,4004.6,4004.2,2.33655783]
[1734432733866,0.86015102,4004.5,4004.2,2.33655783]
[1734432734081,1.29618415,4004.7,4004.2,2.33655783]
[1734432734298,2.15038351,4004.6,4004.2,2.33655783]
[1734432734604,0.8601534,4004.5,4004.2,2.33655783]
[1734432734894,1.03694732,4004.7,4004.2,2.33655783]
[1734432735101,2.15024935,4004.6,4004.2,2.33655783]
[1734432735400,0.86009974,4004.5,4004.2,2.33655783]
[1734432735593,1.29618415,4004.7,4004.2,2.33655783]
[1734432735781,2.15039781,4004.6,4004.2,2.33655783]
[1734432735984,1.29618415,4004.7,4004.2,2.33655783]
[1734432736169,2.15046283,4004.6,4004.2,2.33655783]
[1734432736366,1.29618415,4004.7,4004.2,2.33655783]
[1734432736682,1.03694732,4004.8,4004.3,4.0639]
[1734432736888,1.03694732,4004.9,4004.3,4.0639]
[1734432737180,2.1503072,4004.8,4004.3,4.0639]
[1734432737383,1.03694732,4004.9,4004.3,4.0639]
[1734432737384,0.86012333,4004.7,4004.3,4.0639]
[1734432737685,1.03694732,4004.9,4004.3,4.0639]
[1734432737893,0.86044653,4004.8,4004.3,4.0639]
[1734432738200,1.03694732,4005.0,4004.3,4.0639]
[1734432738381,2.15119313,4004.9,4004.3,4.0639]
[1734432738576,1.03694732,4005.0,4004.3,4.0639]
[1734432738776,0.86047883,4004.9,4004.3,4.0639]
[1734432739002,1.03694732,4005.1,4004.3,4.0639]
[1734432739300,3.37402425,4005.0,4004.3,4.0639]
[1734432739498,2.15134117,4004.9,4004.3,4.0639]
[1734432739701,0.86035462,4004.8,4004.3,4.0639]
[1734432739906,1.03694732,4005.0,4004.3,4.0639]
[1734432740071,2.33642892,4004.9,4004.3,4.0639]
[1734432740269,1.03694732,4005.0,4004.3,4.0639]
[1734432740270,0.86029302,4004.8,4004.3,4.0639]
[1734432740464,1.03694732,4005.0,4004.3,4.0639]
[1734432740800,3.37285429,4004.9,4004.3,4.0639]
[1734432741104,0.86008223,4004.8,4004.3,4.0639]
[1734432741287,1.03694732,4005.0,4004.6,2.33655783]
[1734432741488,1.55542098,4005.2,4004.7,4.0591]
[1734432741489,1.03694732,4005.2,4004.7,4.0591]
[1734432741700,0.86020758,4005.1,4004.7,4.0591]
[1734432742001,0.86020758,4005.0,4004.7,4.0591]
[1734432742230,1.03694732,4005.2,4004.7,4.0591]
[1734432742370,2.15032383,4005.1,4004.7,4.0591]
[1734432742572,0.86012953,4005.0,4004.7,4.0591]
[1734432742882,1.03694732,4005.2,4004.6,2.33655783]
[1734432743205,2.33652716,4005.1,4004.8,1.0591]
[1734432743404,1.03694732,4005.2,4004.8,1.0591]
[1734432743735,0.86025438,4005.1,4004.8,1.0591]
[1734432744022,0.86025438,4005.0,4004.8,1.0591]
[1734432744171,1.03694732,4005.1,4004.8,1.0591]
[1734432744372,2.33643273,4005.0,4004.8,1.0591]
[1734432744566,1.03694732,4005.1,4004.8,1.0591]
[1734432744824,0.86026541,4005.0,4004.8,1.0591]
[1734432745141,1.03694732,4005.2,4004.8,1.0591]
[1734432745402,2.33685673,4005.1,4004.8,1.0591]
[1734432745640,1.03694732,4005.3,4004.8,1.0591]
[1734432745809,0.86042693,4005.2,4004.8,1.0591]
[1734432745970,1.03694732,4005.4,4004.8,1.0591]
[1734432746174,0.86042129,4005.3,4004.8,1.0591]
[1734432746373,1.03694732,4005.6,4005.0,2.33655783]
[1734432746684,1.03694732,4005.3,4004.5,1.0591]
[1734432746879,1.0715,4005.0,4004.2,3.39565783]
[1734432747069,3.37388965,4004.9,4004.2,3.39565783]
[1734432747418,1.0715,4005.0,4004.2,1.0591]
[1734432747419,3.3735874,4004.8,4004.2,1.0591]
[1734432747711,3.3735874,4004.7,4004.2,1.0591]
[1734432747910,2.33664008,4004.6,4004.2,1.0591]
[1734432748210,0.86032369,4004.5,4003.9,1.0591]
[1734432748410,3.22231338,4004.4,4003.6,1.0591]
[1734432748607,2.1507679,4004.3,4003.6,1.0591]
[1734432748773,2.33652465,4004.2,4003.6,1.0591]
[1734432748970,1.03694732,4004.3,4003.6,1.0591]
[1734432749276,2.33655045,4004.2,4003.6,1.0591]
[1734432749469,1.03694732,4004.3,4003.6,1.0591]
[1734432749670,2.33657309,4004.2,4003.6,1.0591]
[1734432749875,0.86029741,4004.1,4003.6,1.0591]
[1734432750199,1.4156815,4004.3,4003.6,1.0591]
[1734432750395,2.33623658,4004.2,4003.6,1.0591]
[1734432750706,0.86017111,4004.1,4003.6,1.0591]
[1734432751032,1.4156815,4004.3,4003.6,1.0591]
[1734432751177,1.45013263,4004.2,4003.6,1.0591]
[1734432751481,0.40426025,4004.2,4003.6,1.0591]
[1734432757200,1.04588286,4004.1,4003.6,1.0591]
[1734432757407,1.44120757,4004.2,4003.6,1.0591]
[1734432757713,2.33596954,4004.1,4003.6,1.0591]
[1734432757884,0.18579238,4004.0,4003.4,2.33655783]
[1734432758211,0.64040981,4004.1,4003.4,5.33655783]
[1734432758416,0.18576324,4004.0,4003.4,5.33655783]
[1734432758713,0.64040981,4004.1,4003.4,5.33655783]
[1734432760316,0.64040981,4004.1,4003.3,1.0591]
[1734432760615,1.03694732,4004.3,4003.3,1.0591]
[1734432760913,2.33509391,4004.2,4003.3,1.0591]
[1734432761105,1.04546697,4004.1,4003.3,4.0591]
[1734432761314,1.04546697,4004.0,4003.3,4.0591]
[1734432761515,1.03694732,4004.1,4003.3,4.0591]
[1734432761707,1.30459439,4004.0,4003.3,4.0591]
[1734432761899,0.18569341,4003.9,4003.3,4.0591]
[1734432762100,0.25923683,4004.0,4003.3,4.0591]
[1734432762324,1.04537311,4003.9,4003.3,4.0591]
[1734432762624,0.25923683,4004.0,4003.3,4.0591]
[1734432762834,1.33051898,4003.9,4003.3,4.0591]
[1734432762988,0.28516051,4003.9,4003.3,4.0591]
[1734432763328,1.03694732,4004.1,4003.3,4.0591]
[1734432763534,2.3345423,4004.0,4003.3,4.0591]
[1734432763705,1.04520065,4003.9,4003.3,4.0591]
[1734432763891,1.03694732,4004.1,4003.3,4.0591]
[1734432764094,1.03694732,4004.2,4003.3,4.0591]
[1734432764297,1.41144535,4004.1,4003.3,4.0591]
[1734432764563,0.36638683,4004.1,4003.3,4.0591]
[1734432765061,0.85941507,4004.0,4003.3,4.0591]
[1734432766521,0.36638683,4004.1,4003.3,4.0591]
[1734432766854,0.85928838,4004.0,4003.3,4.0591]
[1734432767022,1.08555063,4004.0,4003.3,4.0591]
[1734432767328,0.22626225,4004.0,4003.3,4.0591]
[1734432768016,0.36638683,4004.1,4003.8,1.07634817]
[1734432768610,1.03694732,4004.5,4003.9,1.1251]
[1734432768824,1.04480783,4004.4,4004.2,1.07634817]
[1734432769023,1.04480783,4004.3,4004.2,1.07634817]
[1734432769232,0.85928287,4004.3,4004.2,1.07634817]
[1734432769434,2.14840993,4004.4,4004.2,1.07634817]
[1734432769740,1.03694732,4004.5,4004.2,1.07634817]
[1734432769945,1.36422938,4004.4,4004.2,1.07634817]
[1734432770117,1.36422938,4004.4,4003.9,1.1251]
[1734432770118,0.31924191,4004.4,4003.9,1.1251]
[1734432770318,1.03694732,4004.5,4003.9,1.1251]
[1734432770513,1.04509632,4004.4,4003.9,1.1251]
[1734432770738,1.03694732,4004.5,4003.9,1.1251]
[1734432770941,1.04510952,4004.4,4003.9,1.1251]
[1734432771160,1.03694732,4004.6,4003.9,1.1251]
[1734432771323,0.85953933,4004.5,4003.9,1.1251]
[1734432771518,1.03694732,4004.6,4003.9,1.1251]
[1734432771723,1.04510884,4004.5,4003.9,1.1251]
[1734432771932,0.85949927,4004.4,4003.9,1.1251]
[1734432772221,1.29618415,4004.6,4003.9,1.1251]
[1734432772451,2.33419644,4004.5,4003.9,1.1251]
[1734432772648,1.29618415,4004.6,4003.9,1.1251]
[1734432772829,2.33423624,4004.5,4003.9,1.1251]
[1734432773029,0.18561129,4004.4,4003.9,1.1251]
[1734432773238,1.29618415,4004.6,4003.9,1.1251]
[1734432773559,2.63198822,4004.5,4003.9,1.1251]
[1734432773723,0.18565814,4004.4,4003.9,1.1251]
[1734432773923,0.29751003,4004.5,4003.9,1.1251]
[1734432774238,0.18564749,4004.4,4003.9,1.1251]
[1734432774443,0.29751003,4004.5,4003.9,1.1251]
[1734432774753,0.18567646,4004.4,4003.9,1.1251]
[1734432774951,0.29751003,4004.5,4003.9,1.1251]
[1734432775157,0.33769094,4004.4,4003.9,1.1251]
[1734432775358,0.15201338,4004.4,4003.9,1.1251]
[1734432775563,0.18573233,4004.3,4003.9,1.1251]
[1734432775733,0.18572619,4004.2,4003.4,4.1251]
[1734432775922,1.1889607,4004.4,4003.4,4.1251]
[1734432776265,2.33413216,4004.3,4003.4,4.1251]
[1734432776422,0.18572119,4004.2,4003.4,4.1251]
[1734432776622,1.1054,4004.5,4003.4,4.1251]
[1734432776829,1.04495387,4004.4,4003.4,4.1251]
[1734432777029,2.14234732,4004.5,4003.4,4.1251]
[1734432777030,0.18580506,4004.3,4003.4,4.1251]
[1734432777245,0.18580506,4004.2,4003.4,4.1251]
[1734432777570,0.38212635,4004.5,4003.8,1.1251]
[1734432777745,0.18581506,4004.4,4003.8,4.1251]
[1734432778073,0.18581773,4004.3,4003.8,4.1251]
[1734432778250,1.03694732,4004.7,4003.8,4.1251]
[1734432778463,2.33357684,4004.6,4003.8,4.1251]
[1734432778764,1.04493494,4004.5,4003.8,4.1251]
[1734432778969,0.18584034,4004.4,4003.8,4.1251]
[1734432779141,0.18584034,4004.3,4003.8,4.1251]
[1734432779341,1.61411361,4004.7,4003.8,4.1251]
[1734432779538,2.33367745,4004.6,4003.9,1.1251]
[1734432779747,0.18583679,4004.5,4004.2,4.1251]
[1734432780083,1.03694732,4005.0,4004.2,4.1251]
[1734432780278,1.04504499,4004.9,4004.2,4.1251]
[1734432780449,0.18585309,4004.8,4004.2,4.1251]
[1734432780633,0.18585309,4004.7,4004.2,4.1251]
[1734432780974,2.78607211,4005.2,4004.2,4.4820565]
[1734432780975,1.03694732,4005.1,4004.2,4.4820565]
[1734432781160,2.33393498,4005.0,4004.2,4.4820565]
[1734432781328,0.85922946,4004.9,4004.2,4.4820565]
[1734432781528,0.18585258,4004.8,4004.2,4.4820565]
[1734432781762,1.03694732,4005.1,4004.2,4.4820565]
[1734432781968,1.04498874,4005.0,4004.2,4.4820565]
[1734432782165,1.03694732,4005.4,4004.8,2.33171283]
[1734432782368,1.04487679,4005.3,4004.8,2.33171283]
[1734432782566,0.18579133,4005.2,4004.8,2.33171283]
[1734432782766,1.03694732,4005.5,4004.8,2.33171283]
[1734432782929,2.3334636,4005.4,4004.8,2.33171283]
[1734432783134,1.04481299,4005.3,4004.8,2.33171283]
[1734432783340,1.30897972,4005.5,4004.8,2.33171283]
[1734432783546,2.33329246,4005.4,4004.8,2.33171283]
[1734432783729,0.18570669,4005.3,4004.9,4.0803]
[1734432783966,1.30897972,4005.5,4004.9,4.0803]
[1734432784284,1.04465954,4005.4,4004.9,4.0803]
[1734432784466,1.03694732,4005.6,4004.9,4.0803]
[1734432784671,1.04454367,4005.5,4004.9,4.0803]
[1734432785013,1.03694732,4005.8,4004.9,4.4372565]
[1734432785172,0.3125001,4005.7,4004.9,4.4372565]
[1734432785373,0.12692386,4005.7,4004.9,4.4372565]
[1734432785692,0.12692386,4005.7,4005.0,1.0803]
[1734432786611,1.03694732,4006.0,4005.0,1.4372565]
[1734432786765,1.04407722,4005.9,4005.1,0.3569565]
[1734432787103,0.60707752,4005.9,4005.1,0.3569565]
[1734432787517,1.03694732,4006.1,4005.1,0.3569565]
[1734432787687,2.08104539,4006.0,4005.0,1.0803]
[1734432788016,1.03694732,4005.7,4004.7,1.0803]
[1734432788168,2.08091894,4005.6,4004.7,1.0803]
[1734432788369,0.61970952,4005.5,4004.7,3.41201283]
[1734432788600,2.30980954,4005.8,4004.8,3.0]
[1734432788920,2.33160549,4005.7,4004.8,3.0]
[1734432789208,1.27286222,4005.8,4004.9,1.0803]
[1734432789427,0.85837952,4005.7,4004.9,1.0803]
[1734432789772,1.27286222,4005.8,4004.9,1.0803]
[1734432789973,0.85834152,4005.7,4004.9,1.0803]
[1734432790413,1.65938527,4005.8,4004.9,1.0803]
[1734432790578,0.85823254,4005.7,4004.9,1.0803]
[1734432790770,1.65938527,4005.8,4004.9,1.0803]
[1734432790968,0.12656222,4005.8,4004.9,1.0803]
[1734432791225,1.03694732,4006.0,4004.9,1.0803]
[1734432791503,2.82908994,4006.2,4004.9,1.0803]
[1734432791504,0.85798644,4005.9,4004.9,1.0803]
[1734432791694,1.03694732,4006.1,4004.9,1.0803]
[1734432791891,1.04339777,4006.0,4004.9,1.0803]
[1734432792092,2.91665704,4005.9,4005.3,1.07552402]
[1734432792296,0.58577778,4005.9,4005.3,1.07552402]
[1734432793210,0.58577778,4005.9,4004.9,1.0803]
[1734432793575,3.47711182,4005.8,4004.9,2.15582402]
[1734432793823,1.1463,4005.8,4004.9,2.15582402]
[1734432794125,1.1463,4005.8,4005.2,1.07552402]
[1734432794467,0.12165015,4005.9,4005.2,1.07552402]
[1734432794773,0.12165015,4005.9,4005.3,1.0803]
[1734432794997,0.36487679,4005.9,4005.3,1.0803]
[1734432798511,0.12165015,4005.9,4005.5,1.07552402]
[1734432798877,0.12736896,4006.2,4005.6,1.0702]
[1734432799077,0.18535125,4006.1,4005.8,1.07552402]
[1734432799277,2.5002375,4006.3,4006.0,1.07552402]
[1734432804311,2.5002375,4006.3,4006.1,1.0702]
[1734432806895,2.5002375,4006.3,4005.5,1.0702]
[1734432807202,2.5002375,4006.3,4006.0,1.0702]
[1734432809599,0.18572413,4006.2,4006.0,1.0702]
[1734432809794,2.5002375,4006.3,4006.0,1.0702]
[1734432810037,0.18573417,4006.2,4006.0,1.0702]
[1734432810210,2.5002375,4006.3,4006.0,1.0702]
[1734432810871,0.18573166,4006.2,4005.9,1.07552402]
[1734432811159,2.5002375,4006.3,4005.9,1.07552402]
[1734432811378,0.18572733,4006.2,4005.9,1.07552402]
[1734432811662,2.5002375,4006.3,4005.9,1.07552402]
[1734432811802,0.18572111,4006.2,4005.9,1.07552402]
[1734432811996,2.5002375,4006.3,4005.9,1.07552402]
[1734432812199,0.18576619,4006.2,4005.9,1.07552402]
[1734432812501,0.18578937,4006.1,4005.9,1.07552402]
[1734432812701,2.5002375,4006.3,4005.9,1.07552402]
[1734432813024,0.18579117,4006.2,4005.9,1.07552402]
[1734432813340,0.18579117,4006.1,4005.9,1.07552402]
[1734432813514,2.5002375,4006.3,4005.9,1.07552402]
[1734432813713,0.18580825,4006.2,4005.9,1.07552402]
[1734432813929,0.18580825,4006.1,4005.9,1.07552402]
[1734432814130,2.5002375,4006.3,4005.9,1.07552402]
[1734432814348,0.18578727,4006.2,4005.9,1.07552402]
[1734432814651,0.18578727,4006.1,4005.9,1.07552402]
[1734432814823,2.5002375,4006.3,4005.9,1.07552402]
[1734432815024,0.18578969,4006.2,4005.9,1.07552402]
[1734432815243,0.18578969,4006.1,4005.9,1.07552402]
[1734432815551,2.5002375,4006.3,4005.9,1.07552402]
[1734432815757,0.18574024,4006.2,4005.9,1.07552402]
[1734432816058,2.5002375,4006.3,4005.9,1.07552402]
[1734432816059,0.18570222,4006.1,4005.9,1.07552402]
[1734432816221,2.5002375,4006.3,4005.9,1.07552402]
[1734432816551,0.1856945,4006.2,4005.9,1.07552402]
[1734432816755,2.5002375,4006.3,4005.9,1.07552402]
[1734432816927,0.18570252,4006.2,4005.9,1.07552402]
[1734432817123,2.5002375,4006.3,4005.9,1.07552402]
[1734432817317,0.18570561,4006.2,4005.9,1.07552402]
[1734432817522,2.5002375,4006.3,4005.9,1.07552402]
[1734432817749,0.1857046,4006.2,4005.9,1.07552402]
[1734432817919,2.5002375,4006.3,4005.9,1.07552402]
[1734432818116,0.18569661,4006.2,4005.9,1.07552402]
[1734432818321,2.5002375,4006.3,4005.9,1.07552402]
[1734432818631,0.18572836,4006.2,4005.9,1.07552402]
[1734432818828,2.5002375,4006.3,4005.9,1.07552402]
[1734432819043,0.18573298,4006.2,4005.9,0.3569565]
[1734432819243,2.5002375,4006.3,4005.9,0.3569565]
[1734432819244,2.5002375,4006.3,4006.2,2.14572402]
[1734432819855,2.5002375,4006.3,4006.2,15.57213565]
[1734432820084,2.5002375,4006.3,4006.2,27.29633965]
[1734432820225,2.5002375,4006.3,4006.2,23.55364465]
[1734432820628,2.5002375,4006.3,4006.2,22.79964465]
[1734432820922,2.5002375,4006.3,4006.2,13.05780565]
[1734432823446,2.5002375,4006.3,4006.2,14.13332967]
[1734432827489,42.14,4007.5,4006.3,3.70219463]
[1734432827632,42.14,4007.5,4007.4,2.16852402]
[1734432828662,42.14,4007.5,4007.4,5.52548052]
[1734432830179,42.14,4007.5,4007.4,16.27828752]
[1734432830378,42.14,4007.5,4007.4,20.03228752]
[1734432831367,42.14,4007.5,4007.4,16.22597452]
[1734432831568,42.14,4007.5,4007.4,15.05453965]
[1734432833582,42.14,4007.5,4007.4,16.13006367]
[1734432834268,42.14,4007.5,4007.4,15.05453965]
[1734432834460,42.14,4007.5,4007.4,16.13006367]
[1734432836292,42.14,4007.5,4007.4,16.68006367]
[1734432840809,33.32195213,4007.5,4007.4,16.68006367]
[1734432841008,33.26577906,4007.5,4007.4,16.68006367]
[1734432843342,29.05141579,4007.5,4007.4,16.68006367]
[1734432843904,26.82113838,4007.5,4007.4,7.49624267]
[1734432844110,26.82113838,4007.5,4007.4,57.99624267]
[1734432844439,26.82113838,4007.5,4007.4,55.84519463]
[1734432844612,26.82113838,4007.5,4007.4,57.99624267]
[1734432846136,26.82113838,4007.5,4007.4,56.92071865]
[1734432848622,26.82113838,4007.5,4007.4,55.07430165]
[1734432850114,26.82113838,4007.5,4007.4,56.14982567]
[1734432851741,20.3764977,4007.5,4007.4,56.39966195]
[1734432852034,20.3764977,4007.5,4007.4,56.64966195]
[1734432852547,18.14622029,4007.5,4007.4,56.64966195]
[1734432853324,18.14622029,4007.5,4007.4,56.92547576]
[1734432854116,16.10971716,4007.5,4007.4,60.24669973]
[1734432854504,9.66507648,4007.5,4007.4,60.24669973]
[1734432855018,9.66507648,4007.5,4007.4,60.42062866]
[1734432855235,9.55336605,4007.5,4007.4,58.09565169]
[1734432855420,9.55336605,4007.5,4007.4,58.53586985]
[1734432856251,9.55336605,4007.5,4007.4,60.86084682]
[1734432856835,9.55336605,4007.5,4007.4,58.53586985]
[1734432857021,7.51686292,4007.5,4007.4,58.53586985]
[1734432857560,1.07222224,4007.5,4007.4,58.26005604]
[1734432857766,1.07222224,4007.5,4007.4,58.53586985]
[1734432858349,0.96051181,4007.5,4007.4,58.53586985]
[1734432858513,0.96051181,4007.5,4007.4,56.21089288]
[1734432859924,51.74400868,4007.7,4007.4,56.21089288]
[1734432860126,51.74400868,4007.7,4007.6,1.6761]
[1734432860411,51.74400868,4007.7,4007.6,56.33840889]
[1734432861329,51.74400868,4007.7,4007.6,55.89819073]
[1734432861547,45.18765757,4007.7,4007.6,56.33843924]
[1734432862519,45.18765757,4007.7,4007.6,55.24107051]
[1734432862723,45.18765757,4007.7,4007.6,54.99123423]
[1734432862932,45.18765757,4007.7,4007.6,55.34819073]
[1734432864032,45.18765757,4007.7,4007.6,52.34819073]
[1734432864244,45.18765757,4007.7,4007.6,1.84819073]
[1734432864445,45.18765757,4007.7,4007.6,52.34819073]
[1734432864961,45.18765757,4007.7,4007.6,47.201168]
[1734432865155,45.18765757,4007.7,4007.5,50.5]
[1734432865938,45.18765757,4007.7,4007.5,50.8569565]
[1734432866138,45.18765757,4007.7,4007.6,45.7689]
[1734432866355,45.18765757,4007.7,4007.6,46.3189]
[1734432866663,46.32195757,4007.7,4007.6,35.454895]
[1734432866964,46.32195757,4007.7,4007.6,30.124343]
[1734432868365,46.32195757,4007.7,4007.6,33.124343]
[1734432868788,46.32195757,4007.7,4007.6,19.132368]
[1734432869333,46.32195757,4007.7,4007.6,19.4893245]
[1734432869536,46.32195757,4007.7,4007.6,19.85445873]
[1734432875475,46.32195757,4007.7,4007.4,1.0]
[1734432875683,1.1343,4007.6,4007.4,1.0]
[1734432877177,1.1343,4007.6,4007.4,1.36513423]
[1734432877545,1.1343,4007.6,4007.5,0.36513423]
[1734432881748,1.1343,4007.6,4007.5,24.54857523]
[1734432882083,1.1343,4007.6,4007.5,16.85748323]
[1734432883382,1.1343,4007.6,4007.5,6.18013423]
[1734432883759,1.1343,4007.6,4007.5,0.36513423]
[1734432884376,1.1343,4007.6,4007.4,1.0]
[1734432896477,1.07448179,4007.5,4007.4,1.0]
[1734432896794,1.1941,4007.5,4007.4,1.0]
[1734432897496,2.26858179,4007.5,4007.4,1.0]
[1734432899691,1.1941,4007.5,4007.4,1.0]
[1734432904215,1.1941,4007.5,4007.4,1.0]
[1734432906849,1.2891,4007.4,4005.4,1.2446]
[1734432907048,1.52545818,4007.3,4006.1,0.36513423]
[1734432907431,1.52545818,4007.3,4006.5,3.0]
[1734432908208,1.52545818,4007.3,4006.1,0.36513423]
[1734432908587,1.52545818,4007.3,4006.1,1.96669073]
[1734432908848,1.2891,4007.3,4006.2,0.3569565]
[1734432909024,1.2891,4007.3,4006.3,0.36513423]
[1734432909216,1.2891,4007.3,4006.4,0.3569565]
[1734432909423,1.2891,4007.3,4006.5,0.36513423]
[1734432909968,1.2891,4007.3,4006.5,0.72209073]
[1734432910166,1.2891,4007.3,4006.6,0.3569565]
[1734432910375,1.2891,4007.3,4006.7,0.36513423]
[1734432912051,1.2891,4007.3,4006.7,1.94719073]
[1734432912247,1.2347,4007.6,4006.8,0.3569565]
[1734432912546,45.18765757,4007.7,4007.0,1.2251]
[1734432912716,45.18765757,4007.7,4007.1,0.72209073]
[1734432915759,45.18765757,4007.7,4007.3,3.0]
[1734432915959,45.18765757,4007.7,4007.5,3.0]
[1734432916126,45.18765757,4007.7,4007.6,30.39415773]
[1734432916332,45.18765757,4007.7,4007.6,34.90471573]
[1734432918775,45.13765757,4007.7,4007.6,34.90471573]
[1734432922976,45.13765757,4007.7,4007.6,33.06885673]
[1734432923344,45.13765757,4007.7,4007.6,2.01289073]
[1734432923651,45.13765757,4007.7,4007.6,44.25903873]
[1734432923858,45.13765757,4007.7,4007.6,41.25283373]
[1734432924237,45.13765757,4007.7,4007.6,44.25283373]
[1734432925836,45.13765757,4007.7,4007.6,26.75467473]
[1734432929965,45.13765757,4007.7,4007.6,27.30467473]
[1734432933667,45.13765757,4007.7,4007.6,28.37845596]
[1734432934072,45.13765757,4007.7,4007.6,57.13667196]
[1734432935277,45.13765757,4007.7,4007.6,47.68639296]
[1734432938446,45.13765757,4007.7,4007.6,46.06261173]
[1734432938643,45.13765757,4007.7,4007.6,45.84559296]
[1734432938954,45.13765757,4007.7,4007.6,0.72209073]
[1734432939163,47.69379678,4007.7,4007.6,1.07378123]
[1734432939478,49.00699678,4007.7,4007.2,1.07378123]
[1734432940081,49.00699678,4007.7,4006.0,2.09007658]
[1734432940082,1.3132,4007.6,4006.9,1.07378123]
[1734432940878,1.3132,4007.6,4006.9,1.43891546]
[1734432941082,1.3132,4007.6,4006.9,0.36513423]
[1734432941254,47.69379678,4007.7,4006.9,0.36513423]
[1734432941255,1.2862,4007.4,4006.9,0.36513423]
[1734432941983,1.2862,4007.4,4006.5,0.72209073]
[1734432942177,1.2862,4007.4,4006.5,0.3569565]
[1734432942393,1.2862,4007.4,4006.6,0.36513423]
[1734432942596,1.2862,4007.4,4006.7,0.3569565]
[1734432942801,1.67043392,4007.3,4006.8,0.36513423]
[1734432943447,1.2862,4007.2,4006.8,0.36513423]
[1734432951498,1.2862,4007.2,4006.2,0.3569565]
[1734432951499,1.2862,4007.2,4006.3,0.36513423]
[1734432951865,1.2862,4007.2,4006.4,6.97040095]
[1734432952065,1.2862,4007.2,4006.5,0.36513423]
[1734432952264,1.2862,4007.2,4006.6,0.3569565]
[1734432952574,1.2862,4007.2,4006.7,0.36513423]
[1734432952921,1.2281,4007.0,4006.7,0.36513423]
[1734432954181,1.2281,4007.0,4006.0,3.97040095]
[1734432954182,1.2281,4007.0,4006.2,2.32884445]
[1734432954384,1.2281,4007.0,4006.2,2.69397868]
[1734432954783,1.2281,4007.0,4006.3,3.0]
[1734432954986,1.2281,4007.0,4006.3,0.36513423]
[1734432955250,1.2281,4007.0,4006.3,3.36513423]
[1734432955388,1.2281,4007.0,4006.4,0.72209073]
[1734432956532,1.2281,4007.0,4006.8,1.0]
[1734432962828,1.57009827,4006.9,4006.8,1.0]
[1734432965328,1.57009827,4006.9,4005.9,1.07488267]
[1734432967836,1.57009827,4006.9,4006.2,1.07488267]
[1734432968049,1.57009827,4006.9,4005.9,1.07488267]
[1734432969651,1.07488267,4006.7,4005.3,1.6116565]
[1734432969852,1.07488267,4006.7,4005.2,1.07488267]
[1734432969853,1.3398,4006.6,4005.2,1.07488267]